[Event "Live Chess"]
[Site "Chess.com"]
[Date "2023.05.20"]
[Round "-"]
[White "risinghelios"]
[Black "TDCMF"]
[Result "1-0"]
[WhiteElo "1936"]
[BlackElo "362"]
[TimeControl "300"]
[EndTime "11:41:29 PDT"]
[Termination "risinghelios won by checkmate"]

1. e4 {[%clk 0:04:59.2]} 1... e5 {[%clk 0:04:58.5]} 2. Bc4 {[%clk 0:04:58.8]}
2... Bc5 {[%clk 0:04:56.6]} 3. Qh5 {[%clk 0:04:56.5]} 3... g6 {[%clk 0:04:54.3]}
4. Qxe5+ {[%clk 0:04:55.5]} 4... Qe7 {[%clk 0:04:39.3]} 5. Qxh8 {[%clk
0:04:55.4]} 5... Qxe4+ {[%clk 0:04:35.1]} 6. Ne2 {[%clk 0:04:54.4]} 6... Qxc4
{[%clk 0:04:33.1]} 7. Qxg8+ {[%clk 0:04:50.8]} 7... Ke7 {[%clk 0:04:31.1]} 8.
Nbc3 {[%clk 0:04:50]} 8... Qg4 {[%clk 0:04:12.1]} 9. O-O {[%clk 0:04:48.5]} 9...
Bxf2+ {[%clk 0:04:05.2]} 10. Rxf2 {[%clk 0:04:47.3]} 10... Qe6 {[%clk 0:03:59]}
11. Nd4 {[%clk 0:04:45.8]} 11... Qc4 {[%clk 0:03:55.7]} 12. d3 {[%clk
0:04:43.1]} 12... Qxd4 {[%clk 0:03:53.9]} 13. Bg5+ {[%clk 0:04:41.8]} 13... f6
{[%clk 0:03:52]} 14. Bxf6+ {[%clk 0:04:41.1]} 14... Kd6 {[%clk 0:03:46.9]} 15.
Bxd4 {[%clk 0:04:39.4]} 15... b6 {[%clk 0:03:43.7]} 16. Qd5+ {[%clk 0:04:39.3]}
16... Ke7 {[%clk 0:03:38.2]} 17. Rf7+ {[%clk 0:04:39.2]} 17... Ke8 {[%clk
0:03:35.9]} 18. Re1+ {[%clk 0:04:39.1]} 18... Kd8 {[%clk 0:03:34.5]} 19. Bf6#
{[%clk 0:04:39]} 1-0

[Event "Live Chess"]
[Site "Chess.com"]
[Date "2023.05.20"]
[Round "-"]
[White "ProfPoisson"]
[Black "TheSmoulderingMaster"]
[Result "1-0"]
[WhiteElo "1072"]
[BlackElo "1748"]
[TimeControl "300"]
[EndTime "11:41:30 PDT"]
[Termination "ProfPoisson won by resignation"]

1. e4 {[%clk 0:04:50.6]} 1... c5 {[%clk 0:04:59]} 2. Nf3 {[%clk 0:04:47.8]} 2...
d6 {[%clk 0:04:58.3]} 3. Bb5+ {[%clk 0:04:37.1]} 3... Nd7 {[%clk 0:04:57.2]} 4.
O-O {[%clk 0:04:32.5]} 4... a6 {[%clk 0:04:56]} 5. Bxd7+ {[%clk 0:04:26.8]} 5...
Bxd7 {[%clk 0:04:55.9]} 6. d4 {[%clk 0:04:24.7]} 6... cxd4 {[%clk 0:04:54.4]} 7.
Qxd4 {[%clk 0:04:22.8]} 7... Nf6 {[%clk 0:04:53.8]} 8. Nc3 {[%clk 0:04:19.4]}
8... g6 {[%clk 0:04:52.7]} 9. e5 {[%clk 0:04:14.9]} 9... dxe5 {[%clk 0:04:50.4]}
10. Nxe5 {[%clk 0:04:10.6]} 10... Bg7 {[%clk 0:04:49.7]} 11. Be3 {[%clk
0:04:00.1]} 11... O-O {[%clk 0:04:48.5]} 12. Rad1 {[%clk 0:03:55.1]} 12... Ng4
{[%clk 0:04:40.3]} 13. Qxd7 {[%clk 0:03:44.7]} 13... Bxe5 {[%clk 0:04:38.8]} 14.
Qxg4 {[%clk 0:03:42.3]} 14... Qa5 {[%clk 0:04:33.8]} 15. Bh6 {[%clk 0:03:27.7]}
15... Rfc8 {[%clk 0:04:30.1]} 16. Rd7 {[%clk 0:03:02.8]} 16... Bf6 {[%clk
0:04:21.6]} 17. Ne4 {[%clk 0:02:56.7]} 17... Rxc2 {[%clk 0:04:11.7]} 18. Nxf6+
{[%clk 0:02:53.6]} 18... exf6 {[%clk 0:04:11.6]} 19. h4 {[%clk 0:02:35.1]} 19...
Rac8 {[%clk 0:04:08.3]} 20. h5 {[%clk 0:02:31.8]} 20... R2c4 {[%clk 0:04:06.9]}
21. Qd1 {[%clk 0:02:22.4]} 21... Rc1 {[%clk 0:04:02.3]} 22. Qd4 {[%clk
0:01:59.9]} 22... Rxf1+ {[%clk 0:03:53.7]} 23. Kxf1 {[%clk 0:01:56.6]} 23...
Rc1+ {[%clk 0:03:52.9]} 24. Bxc1 {[%clk 0:01:53.7]} 1-0

[Event "Live Chess"]
[Site "Chess.com"]
[Date "2023.05.20"]
[Round "-"]
[White "Enhard"]
[Black "KGreenGator"]
[Result "1/2-1/2"]
[WhiteElo "1447"]
[BlackElo "1761"]
[TimeControl "300"]
[EndTime "11:41:38 PDT"]
[Termination "Game drawn by repetition"]

1. d4 {[%clk 0:04:57.7]} 1... Nf6 {[%clk 0:04:59]} 2. Bf4 {[%clk 0:04:55.8]}
2... d6 {[%clk 0:04:58.1]} 3. e3 {[%clk 0:04:54.9]} 3... Nc6 {[%clk 0:04:56.7]}
4. h3 {[%clk 0:04:52.4]} 4... e5 {[%clk 0:04:53.7]} 5. dxe5 {[%clk 0:04:51.2]}
5... dxe5 {[%clk 0:04:53.1]} 6. Qxd8+ {[%clk 0:04:49.9]} 6... Kxd8 {[%clk
0:04:51.7]} 7. Bh2 {[%clk 0:04:48.1]} 7... Bd6 {[%clk 0:04:50.1]} 8. Bb5 {[%clk
0:04:44.5]} 8... Bd7 {[%clk 0:04:47.9]} 9. Ne2 {[%clk 0:04:41.2]} 9... a6 {[%clk
0:04:45.9]} 10. Ba4 {[%clk 0:04:39.5]} 10... b5 {[%clk 0:04:44]} 11. Bb3 {[%clk
0:04:38.2]} 11... Ke7 {[%clk 0:04:41.4]} 12. O-O {[%clk 0:04:33.4]} 12... Na5
{[%clk 0:04:40.2]} 13. Nd2 {[%clk 0:04:30.1]} 13... Nxb3 {[%clk 0:04:39.2]} 14.
axb3 {[%clk 0:04:27.1]} 14... c5 {[%clk 0:04:38.2]} 15. Rfd1 {[%clk 0:04:19.1]}
15... Bc6 {[%clk 0:04:37]} 16. Ng3 {[%clk 0:04:10.7]} 16... g6 {[%clk
0:04:33.4]} 17. Ne2 {[%clk 0:03:54.6]} 17... h5 {[%clk 0:04:31.2]} 18. c3 {[%clk
0:03:48.7]} 18... Ne4 {[%clk 0:04:27.6]} 19. Nxe4 {[%clk 0:03:44]} 19... Bxe4
{[%clk 0:04:26.7]} 20. b4 {[%clk 0:03:39.4]} 20... cxb4 {[%clk 0:04:21.5]} 21.
cxb4 {[%clk 0:03:35.9]} 21... Bxb4 {[%clk 0:04:20.3]} 22. Bxe5 {[%clk
0:03:31.9]} 22... f6 {[%clk 0:04:18.8]} 23. Bc3 {[%clk 0:03:29.9]} 23... Bc5
{[%clk 0:04:16.7]} 24. Bd4 {[%clk 0:03:25.7]} 24... Bxd4 {[%clk 0:04:15.2]} 25.
Nxd4 {[%clk 0:03:24.5]} 25... Rhd8 {[%clk 0:04:13.1]} 26. Rdc1 {[%clk
0:03:21.9]} 26... Rd7 {[%clk 0:04:10.1]} 27. Rc5 {[%clk 0:03:18.4]} 27... Kd6
{[%clk 0:04:02.8]} 28. Rac1 {[%clk 0:03:16.9]} 28... f5 {[%clk 0:03:53.3]} 29.
b4 {[%clk 0:03:11.5]} 29... Bb7 {[%clk 0:03:49.2]} 30. h4 {[%clk 0:03:04.6]}
30... Ke7 {[%clk 0:03:43.5]} 31. g3 {[%clk 0:02:58.9]} 31... Rad8 {[%clk
0:03:39.7]} 32. Rc7 {[%clk 0:02:55.5]} 32... Be4 {[%clk 0:03:31.9]} 33. Kf1
{[%clk 0:02:51.8]} 33... Bd3+ {[%clk 0:03:27.9]} 34. Ke1 {[%clk 0:02:50.7]}
34... Rxc7 {[%clk 0:03:25.9]} 35. Rxc7+ {[%clk 0:02:49.2]} 35... Rd7 {[%clk
0:03:25.3]} 36. Rc6 {[%clk 0:02:46.2]} 36... Rd6 {[%clk 0:03:22.9]} 37. Rc7+
{[%clk 0:02:43]} 37... Kf6 {[%clk 0:03:21.2]} 38. Kd2 {[%clk 0:02:38.3]} 38...
Bc4 {[%clk 0:03:19.8]} 39. Kc3 {[%clk 0:02:36.3]} 39... g5 {[%clk 0:03:17.6]}
40. hxg5+ {[%clk 0:02:34.5]} 40... Kxg5 {[%clk 0:03:15.7]} 41. Rg7+ {[%clk
0:02:31.1]} 41... Kf6 {[%clk 0:03:14.7]} 42. Rc7 {[%clk 0:02:27.1]} 42... Kg5
{[%clk 0:03:12.5]} 43. Rg7+ {[%clk 0:02:25.1]} 43... Kh6 {[%clk 0:03:10.9]} 44.
Rc7 {[%clk 0:02:23.4]} 44... Kg5 {[%clk 0:03:09.2]} 1/2-1/2

[Event "Live Chess"]
[Site "Chess.com"]
[Date "2023.05.20"]
[Round "-"]
[White "Richardallis"]
[Black "Reggie016"]
[Result "1-0"]
[WhiteElo "1688"]
[BlackElo "1071"]
[TimeControl "300"]
[EndTime "11:41:38 PDT"]
[Termination "Richardallis won by checkmate"]

1. d4 {[%clk 0:04:57]} 1... e6 {[%clk 0:04:59]} 2. Nf3 {[%clk 0:04:56]} 2... f5
{[%clk 0:04:57.7]} 3. e4 {[%clk 0:04:54.2]} 3... fxe4 {[%clk 0:04:53.7]} 4. Ne5
{[%clk 0:04:53.7]} 4... Nf6 {[%clk 0:04:46.1]} 5. Bg5 {[%clk 0:04:52]} 5... Be7
{[%clk 0:04:45]} 6. Bc4 {[%clk 0:04:46.7]} 6... O-O {[%clk 0:04:43.5]} 7. O-O
{[%clk 0:04:44.7]} 7... d6 {[%clk 0:04:21.5]} 8. Bxf6 {[%clk 0:04:41.7]} 8...
Rxf6 {[%clk 0:04:09]} 9. Ng4 {[%clk 0:04:39.9]} 9... Rf8 {[%clk 0:04:04.6]} 10.
Nd2 {[%clk 0:04:34.3]} 10... d5 {[%clk 0:03:57.1]} 11. Bb3 {[%clk 0:04:33.1]}
11... Bd6 {[%clk 0:03:48.1]} 12. Qe2 {[%clk 0:04:26.8]} 12... Qg5 {[%clk
0:03:41.4]} 13. f3 {[%clk 0:04:20.4]} 13... exf3 {[%clk 0:03:26.6]} 14. Rxf3
{[%clk 0:04:19.2]} 14... Rxf3 {[%clk 0:03:13.1]} 15. Qxf3 {[%clk 0:04:17.7]}
15... Qxd2 {[%clk 0:03:08.6]} 16. Rf1 {[%clk 0:04:16.1]} 16... Nd7 {[%clk
0:02:33.9]} 17. Qf7+ {[%clk 0:04:11.8]} 17... Kh8 {[%clk 0:02:32.5]} 18. Qe8+
{[%clk 0:04:10.4]} 18... Bf8 {[%clk 0:02:29.7]} 19. Rxf8+ {[%clk 0:04:09.7]}
19... Nxf8 {[%clk 0:02:28.8]} 20. Qxf8# {[%clk 0:04:09.3]} 1-0

[Event "Live Chess"]
[Site "Chess.com"]
[Date "2023.05.20"]
[Round "-"]
[White "AbilifyXL"]
[Black "BostonStrangler"]
[Result "0-1"]
[WhiteElo "1942"]
[BlackElo "2061"]
[TimeControl "300"]
[EndTime "11:41:42 PDT"]
[Termination "BostonStrangler won by resignation"]

1. d4 {[%clk 0:04:57.5]} 1... Nf6 {[%clk 0:04:58.7]} 2. c4 {[%clk 0:04:57.2]}
2... c5 {[%clk 0:04:58.1]} 3. d5 {[%clk 0:04:56.2]} 3... b5 {[%clk 0:04:57.8]}
4. cxb5 {[%clk 0:04:55.2]} 4... a6 {[%clk 0:04:57.5]} 5. b6 {[%clk 0:04:52.6]}
5... Qxb6 {[%clk 0:04:53.9]} 6. Nc3 {[%clk 0:04:52]} 6... d6 {[%clk 0:04:53.2]}
7. a4 {[%clk 0:04:40.1]} 7... g6 {[%clk 0:04:50.1]} 8. a5 {[%clk 0:04:39.3]}
8... Qb4 {[%clk 0:04:49.2]} 9. Nf3 {[%clk 0:04:34.5]} 9... Bg7 {[%clk
0:04:47.4]} 10. Ra4 {[%clk 0:04:31.8]} 10... Qb7 {[%clk 0:04:45.7]} 11. e4
{[%clk 0:04:28.8]} 11... O-O {[%clk 0:04:44.8]} 12. Nd2 {[%clk 0:04:27.6]} 12...
Bd7 {[%clk 0:04:43.6]} 13. Ra3 {[%clk 0:04:25.7]} 13... Bb5 {[%clk 0:04:42.7]}
14. Rb3 {[%clk 0:04:21.6]} 14... Nbd7 {[%clk 0:04:41.8]} 15. Bxb5 {[%clk
0:04:19.4]} 15... axb5 {[%clk 0:04:40.7]} 16. Rxb5 {[%clk 0:04:18.6]} 16... Qc7
{[%clk 0:04:39.7]} 17. Qa4 {[%clk 0:04:07.7]} 17... Rfb8 {[%clk 0:04:38.1]} 18.
a6 {[%clk 0:03:58.9]} 18... Rxb5 {[%clk 0:04:34.1]} 19. Qxb5 {[%clk 0:03:54.7]}
19... Qb6 {[%clk 0:04:32.4]} 20. Qxb6 {[%clk 0:03:49.8]} 20... Nxb6 {[%clk
0:04:30.6]} 21. O-O {[%clk 0:03:49.3]} 21... Rxa6 {[%clk 0:04:29.6]} 22. Re1
{[%clk 0:03:44.2]} 22... Nfd7 {[%clk 0:04:27.6]} 23. h3 {[%clk 0:03:36.5]} 23...
Ne5 {[%clk 0:04:26.2]} 24. f4 {[%clk 0:03:34]} 24... Nd3 {[%clk 0:04:23.8]} 25.
Rd1 {[%clk 0:03:31.8]} 25... Bd4+ {[%clk 0:03:51.1]} 26. Kh2 {[%clk 0:03:23.1]}
26... Bxc3 {[%clk 0:03:36]} 27. bxc3 {[%clk 0:03:20.9]} 27... Nxc1 {[%clk
0:03:29.1]} 28. Rxc1 {[%clk 0:03:19.3]} 28... Ra2 {[%clk 0:03:28.7]} 29. Nf3
{[%clk 0:03:11.8]} 29... Nc4 {[%clk 0:03:23.9]} 30. e5 {[%clk 0:03:09]} 30...
Ne3 {[%clk 0:03:17.3]} 31. Re1 {[%clk 0:02:53.8]} 31... Nxg2 {[%clk 0:03:11.9]}
32. Rd1 {[%clk 0:02:49.8]} 32... Ne3+ {[%clk 0:03:05.8]} 0-1

[Event "Live Chess"]
[Site "Chess.com"]
[Date "2023.05.20"]
[Round "-"]
[White "SupremeTactician"]
[Black "kerryman1969"]
[Result "1/2-1/2"]
[WhiteElo "2400"]
[BlackElo "1156"]
[TimeControl "300"]
[EndTime "11:41:53 PDT"]
[Termination "Game drawn by repetition"]

1. e4 {[%clk 0:04:59.1]} 1... c5 {[%clk 0:04:52.8]} 2. Nf3 {[%clk 0:04:58.4]}
2... g6 {[%clk 0:04:48.6]} 3. d4 {[%clk 0:04:52.4]} 3... cxd4 {[%clk 0:04:43.3]}
4. Nxd4 {[%clk 0:04:52.3]} 4... Bg7 {[%clk 0:04:37]} 5. Nc3 {[%clk 0:04:51.9]}
5... a6 {[%clk 0:04:30.7]} 6. Be3 {[%clk 0:04:51]} 6... e6 {[%clk 0:04:27.8]} 7.
Be2 {[%clk 0:04:49.6]} 7... Ne7 {[%clk 0:04:24.8]} 8. O-O {[%clk 0:04:48.3]}
8... d5 {[%clk 0:04:20.4]} 9. exd5 {[%clk 0:04:45.7]} 9... Nxd5 {[%clk
0:04:17.4]} 10. Nxd5 {[%clk 0:04:45.3]} 10... Qxd5 {[%clk 0:04:13.6]} 11. Bf3
{[%clk 0:04:44.8]} 11... Qd8 {[%clk 0:04:00.3]} 12. c3 {[%clk 0:04:39.2]} 12...
O-O {[%clk 0:03:57.2]} 13. Nb3 {[%clk 0:04:38.6]} 13... Nc6 {[%clk 0:03:50.4]}
14. Bxc6 {[%clk 0:04:34.8]} 14... bxc6 {[%clk 0:03:47]} 15. Bc5 {[%clk
0:04:34.3]} 15... Re8 {[%clk 0:03:43.8]} 16. Qxd8 {[%clk 0:04:30.6]} 16... Rxd8
{[%clk 0:03:40.8]} 17. Na5 {[%clk 0:04:28.1]} 17... Rd2 {[%clk 0:03:35.2]} 18.
Nxc6 {[%clk 0:04:23.8]} 18... Rxb2 {[%clk 0:03:31.2]} 19. Ne7+ {[%clk
0:04:23.1]} 19... Kh8 {[%clk 0:03:25.1]} 20. Rad1 {[%clk 0:04:23]} 20... Bb7
{[%clk 0:03:18.3]} 21. Rd7 {[%clk 0:04:21.5]} 21... Be4 {[%clk 0:03:14.7]} 22.
f3 {[%clk 0:04:19.4]} 22... Bf5 {[%clk 0:03:12]} 23. Rfd1 {[%clk 0:04:16.6]}
23... h5 {[%clk 0:03:06.3]} 24. Nxf5 {[%clk 0:03:48.4]} 24... exf5 {[%clk
0:03:01.3]} 25. Rxf7 {[%clk 0:03:47.7]} 25... Bxc3 {[%clk 0:02:51.3]} 26. Rdd7
{[%clk 0:03:18.3]} 26... Re8 {[%clk 0:02:47.3]} 27. Rh7+ {[%clk 0:03:16.2]}
27... Kg8 {[%clk 0:02:44]} 28. Rhe7 {[%clk 0:03:06.1]} 28... Rxe7 {[%clk
0:02:38.7]} 29. Rxe7 {[%clk 0:03:06]} 29... Rxa2 {[%clk 0:02:35.2]} 30. Re6
{[%clk 0:03:05.2]} 30... Kf7 {[%clk 0:02:31.1]} 31. Re7+ {[%clk 0:03:00.7]}
31... Kf6 {[%clk 0:02:28.1]} 32. Rc7 {[%clk 0:03:00.3]} 32... a5 {[%clk
0:02:21.5]} 33. Be7+ {[%clk 0:02:54.1]} 33... Ke6 {[%clk 0:02:19]} 34. Bc5
{[%clk 0:02:52.7]} 34... a4 {[%clk 0:02:11.2]} 35. Kf1 {[%clk 0:02:52]} 35... a3
{[%clk 0:02:07.3]} 36. Ra7 {[%clk 0:02:45.1]} 36... Ra1+ {[%clk 0:02:02.6]} 37.
Ke2 {[%clk 0:02:43.8]} 37... Bb2 {[%clk 0:02:00.7]} 38. Ra6+ {[%clk 0:02:41.8]}
38... Kf7 {[%clk 0:01:51.6]} 39. Ra7+ {[%clk 0:02:38]} 39... Kf6 {[%clk
0:01:48.9]} 40. Ra6+ {[%clk 0:02:36.9]} 40... Kf7 {[%clk 0:01:46.6]} 41. Ra7+
{[%clk 0:02:36.1]} 41... Ke6 {[%clk 0:01:40.5]} 42. Ra6+ {[%clk 0:02:33.6]}
42... Kf7 {[%clk 0:01:37.9]} 1/2-1/2

[Event "Live Chess"]
[Site "Chess.com"]
[Date "2023.05.20"]
[Round "-"]
[White "ethiebear"]
[Black "wot-not"]
[Result "0-1"]
[WhiteElo "800"]
[BlackElo "1468"]
[TimeControl "300"]
[EndTime "11:41:53 PDT"]
[Termination "wot-not won by checkmate"]

1. e4 {[%clk 0:04:58.1]} 1... e5 {[%clk 0:04:57.4]} 2. Nc3 {[%clk 0:04:57.5]}
2... Nf6 {[%clk 0:04:55.8]} 3. f4 {[%clk 0:04:54.7]} 3... d6 {[%clk 0:04:52.1]}
4. Bc4 {[%clk 0:04:51.8]} 4... Be6 {[%clk 0:04:45.8]} 5. d3 {[%clk 0:04:48.6]}
5... Bxc4 {[%clk 0:04:44.7]} 6. dxc4 {[%clk 0:04:47.3]} 6... Nc6 {[%clk
0:04:43.5]} 7. Nd5 {[%clk 0:04:42.4]} 7... Be7 {[%clk 0:04:39.4]} 8. Nxf6+
{[%clk 0:04:37.9]} 8... Bxf6 {[%clk 0:04:38.5]} 9. Nf3 {[%clk 0:04:35.3]} 9...
O-O {[%clk 0:04:29.5]} 10. f5 {[%clk 0:04:33.7]} 10... a6 {[%clk 0:04:21.3]} 11.
Bg5 {[%clk 0:04:31.1]} 11... Bxg5 {[%clk 0:04:18]} 12. Nxg5 {[%clk 0:04:29.9]}
12... Qxg5 {[%clk 0:04:17.2]} 13. O-O {[%clk 0:04:24.7]} 13... Qe3+ {[%clk
0:04:13.6]} 14. Rf2 {[%clk 0:04:19]} 14... Qxe4 {[%clk 0:04:09]} 15. Qf3 {[%clk
0:04:17.2]} 15... Qxf3 {[%clk 0:04:07.9]} 16. Rxf3 {[%clk 0:04:15.3]} 16... Nd4
{[%clk 0:04:07.4]} 17. Rff1 {[%clk 0:04:12.4]} 17... Nxc2 {[%clk 0:04:04.8]} 18.
Rac1 {[%clk 0:04:09.2]} 18... Nd4 {[%clk 0:04:01.6]} 19. f6 {[%clk 0:04:06.2]}
19... Ne2+ {[%clk 0:04:00.7]} 20. Kh1 {[%clk 0:03:49.7]} 20... Nxc1 {[%clk
0:03:59.3]} 21. Rxc1 {[%clk 0:03:44]} 21... gxf6 {[%clk 0:03:58.7]} 22. Rf1
{[%clk 0:03:42.9]} 22... Kg7 {[%clk 0:03:57.7]} 23. g4 {[%clk 0:03:40.9]} 23...
Kg6 {[%clk 0:03:56.7]} 24. h4 {[%clk 0:03:38.8]} 24... h5 {[%clk 0:03:52.3]} 25.
Rg1 {[%clk 0:03:34.9]} 25... hxg4 {[%clk 0:03:49.4]} 26. Rxg4+ {[%clk
0:03:32.4]} 26... Kh5 {[%clk 0:03:48.6]} 27. Re4 {[%clk 0:03:26]} 27... Rg8
{[%clk 0:03:47.4]} 28. Kh2 {[%clk 0:03:23.5]} 28... Rg4 {[%clk 0:03:46.5]} 29.
Kh3 {[%clk 0:03:22.8]} 29... Rxe4 {[%clk 0:03:45.3]} 30. Kg3 {[%clk 0:03:19.7]}
30... Rg8+ {[%clk 0:03:44.3]} 31. Kh3 {[%clk 0:03:18]} 31... Re3+ {[%clk
0:03:38.7]} 32. Kh2 {[%clk 0:03:13.6]} 32... Kxh4 {[%clk 0:03:38.2]} 33. Kh1
{[%clk 0:03:12.6]} 33... Kh3 {[%clk 0:03:36.9]} 34. c5 {[%clk 0:03:03.6]} 34...
Re1# {[%clk 0:03:36.2]} 0-1

[Event "Live Chess"]
[Site "Chess.com"]
[Date "2023.05.20"]
[Round "-"]
[White "apl_trainer"]
[Black "martynstanley"]
[Result "1-0"]
[WhiteElo "1626"]
[BlackElo "1017"]
[TimeControl "300"]
[EndTime "11:41:55 PDT"]
[Termination "apl_trainer won by checkmate"]

1. d4 {[%clk 0:04:58.8]} 1... e6 {[%clk 0:04:59.4]} 2. c4 {[%clk 0:04:57.5]}
2... d5 {[%clk 0:04:58.8]} 3. Nc3 {[%clk 0:04:56.1]} 3... c5 {[%clk 0:04:56.7]}
4. cxd5 {[%clk 0:04:54.1]} 4... exd5 {[%clk 0:04:55.3]} 5. Nf3 {[%clk
0:04:52.6]} 5... Nc6 {[%clk 0:04:54.1]} 6. g3 {[%clk 0:04:51.3]} 6... b6 {[%clk
0:04:52.6]} 7. Bg2 {[%clk 0:04:48.4]} 7... Bb7 {[%clk 0:04:51.7]} 8. O-O {[%clk
0:04:46.9]} 8... Bd6 {[%clk 0:04:49.5]} 9. Nxd5 {[%clk 0:04:32.3]} 9... Nge7
{[%clk 0:04:47.4]} 10. Nxe7 {[%clk 0:04:29.1]} 10... Qxe7 {[%clk 0:04:45.3]} 11.
Bg5 {[%clk 0:04:17.4]} 11... f6 {[%clk 0:04:43.4]} 12. Be3 {[%clk 0:04:14.9]}
12... O-O-O {[%clk 0:04:42]} 13. Qa4 {[%clk 0:04:07.1]} 13... Qd7 {[%clk
0:04:38.7]} 14. dxc5 {[%clk 0:04:02.9]} 14... bxc5 {[%clk 0:04:34.1]} 15. Rfc1
{[%clk 0:03:56.9]} 15... Ne5 {[%clk 0:04:29.7]} 16. Qxd7+ {[%clk 0:03:53.5]}
16... Kxd7 {[%clk 0:04:28.9]} 17. Nxe5+ {[%clk 0:03:50.8]} 17... fxe5 {[%clk
0:04:28.1]} 18. Bxb7 {[%clk 0:03:48.8]} 18... h5 {[%clk 0:04:24.8]} 19. Bxc5
{[%clk 0:03:44.8]} 19... Bxc5 {[%clk 0:04:23.6]} 20. Rxc5 {[%clk 0:03:43.5]}
20... Rde8 {[%clk 0:04:20.4]} 21. Rd1+ {[%clk 0:03:39.6]} 21... Ke6 {[%clk
0:04:18.8]} 22. Rc6+ {[%clk 0:03:35.3]} 22... Kf5 {[%clk 0:04:17.5]} 23. Rc7
{[%clk 0:03:31.9]} 23... g6 {[%clk 0:04:15.9]} 24. h4 {[%clk 0:03:24.4]} 24...
g5 {[%clk 0:04:14.7]} 25. hxg5 {[%clk 0:03:18.2]} 25... Kxg5 {[%clk 0:04:13.5]}
26. Rd6 {[%clk 0:03:13.9]} 26... Kf5 {[%clk 0:04:12.2]} 27. Rf7+ {[%clk
0:03:10]} 27... Kg5 {[%clk 0:04:06.6]} 28. Be4 {[%clk 0:03:08.4]} 28... Ref8
{[%clk 0:04:04.3]} 29. Rg6# {[%clk 0:03:04.7]} 1-0

[Event "Live Chess"]
[Site "Chess.com"]
[Date "2023.05.20"]
[Round "-"]
[White "matt1979"]
[Black "OSmith06"]
[Result "1/2-1/2"]
[WhiteElo "1458"]
[BlackElo "1708"]
[TimeControl "300"]
[EndTime "11:42:00 PDT"]
[Termination "Game drawn by repetition"]

1. f4 {[%clk 0:04:58.7]} 1... e5 {[%clk 0:04:57.5]} 2. fxe5 {[%clk 0:04:57.2]}
2... Qh4+ {[%clk 0:04:55.9]} 3. g3 {[%clk 0:04:54.9]} 3... Be7 {[%clk
0:04:55.5]} 4. Nf3 {[%clk 0:04:42.8]} 4... Qa4 {[%clk 0:04:50.5]} 5. b3 {[%clk
0:04:36.2]} 5... Qa6 {[%clk 0:04:46.1]} 6. e4 {[%clk 0:04:31.4]} 6... Qe6 {[%clk
0:04:44.8]} 7. d4 {[%clk 0:04:27.6]} 7... f6 {[%clk 0:04:38.1]} 8. Bc4 {[%clk
0:04:24.6]} 8... Qh3 {[%clk 0:04:28.9]} 9. Bf1 {[%clk 0:04:12]} 9... Qg4 {[%clk
0:04:22.5]} 10. Qe2 {[%clk 0:04:04.7]} 10... fxe5 {[%clk 0:04:17.5]} 11. Nxe5
{[%clk 0:04:00.9]} 11... Qxe2+ {[%clk 0:04:14.8]} 12. Bxe2 {[%clk 0:03:58.3]}
12... Nf6 {[%clk 0:04:11.6]} 13. Nc3 {[%clk 0:03:50.8]} 13... d6 {[%clk
0:04:09.9]} 14. Nf3 {[%clk 0:03:40.4]} 14... O-O {[%clk 0:04:04.6]} 15. O-O
{[%clk 0:03:36.5]} 15... c5 {[%clk 0:03:59.9]} 16. Be3 {[%clk 0:03:27.3]} 16...
cxd4 {[%clk 0:03:50.5]} 17. Bxd4 {[%clk 0:03:25.8]} 17... Nc6 {[%clk 0:03:44.8]}
18. Bc4+ {[%clk 0:03:21.9]} 18... Kh8 {[%clk 0:03:30.1]} 19. Rad1 {[%clk
0:03:11.9]} 19... Nxd4 {[%clk 0:03:24.3]} 20. Nxd4 {[%clk 0:03:08.5]} 20... Bg4
{[%clk 0:03:20.2]} 21. Rde1 {[%clk 0:03:03]} 21... a6 {[%clk 0:03:09.7]} 22. Ne6
{[%clk 0:02:56.6]} 22... Rfc8 {[%clk 0:03:00.6]} 23. Ng5 {[%clk 0:02:53.4]}
23... h6 {[%clk 0:02:52.1]} 24. Nf7+ {[%clk 0:02:50.4]} 24... Kh7 {[%clk
0:02:49]} 25. e5 {[%clk 0:02:36.8]} 25... dxe5 {[%clk 0:02:41]} 26. Nxe5 {[%clk
0:02:35.1]} 26... Bh3 {[%clk 0:02:31.4]} 27. Bd3+ {[%clk 0:02:15.5]} 27... Kg8
{[%clk 0:02:18.9]} 28. Bc4+ {[%clk 0:02:11.7]} 28... Kh7 {[%clk 0:02:15.1]} 29.
Rf4 {[%clk 0:01:57]} 29... Bb4 {[%clk 0:02:03]} 30. Bd3+ {[%clk 0:01:45]} 30...
Kg8 {[%clk 0:01:58]} 31. Bc4+ {[%clk 0:01:34.5]} 31... Kh7 {[%clk 0:01:43.8]}
32. Bd3+ {[%clk 0:01:33]} 32... Kg8 {[%clk 0:01:42.6]} 33. Bc4+ {[%clk
0:01:31.8]} 33... Kh7 {[%clk 0:01:41.3]} 1/2-1/2

[Event "Live Chess"]
[Site "Chess.com"]
[Date "2023.05.20"]
[Round "-"]
[White "GMHarry-youtube"]
[Black "Conradical12"]
[Result "1-0"]
[WhiteElo "2125"]
[BlackElo "1536"]
[TimeControl "300"]
[EndTime "11:42:02 PDT"]
[Termination "GMHarry-youtube won by resignation"]

1. e4 {[%clk 0:04:57.1]} 1... e5 {[%clk 0:04:57.6]} 2. Nf3 {[%clk 0:04:56.2]}
2... Nc6 {[%clk 0:04:57.1]} 3. Bc4 {[%clk 0:04:54.6]} 3... Nf6 {[%clk
0:04:56.1]} 4. d3 {[%clk 0:04:53.2]} 4... Bc5 {[%clk 0:04:54.6]} 5. c3 {[%clk
0:04:51.4]} 5... a5 {[%clk 0:04:51.3]} 6. a4 {[%clk 0:04:46]} 6... O-O {[%clk
0:04:47]} 7. Qb3 {[%clk 0:04:39.3]} 7... d6 {[%clk 0:04:37.3]} 8. Nbd2 {[%clk
0:04:24.7]} 8... Qe7 {[%clk 0:04:35.5]} 9. Nf1 {[%clk 0:04:22.5]} 9... Be6
{[%clk 0:04:34]} 10. Be3 {[%clk 0:04:15.8]} 10... Bxc4 {[%clk 0:04:27]} 11. Qxc4
{[%clk 0:04:13]} 11... Ra6 {[%clk 0:04:24.8]} 12. Ng3 {[%clk 0:04:06.9]} 12...
Bxe3 {[%clk 0:04:20.9]} 13. fxe3 {[%clk 0:04:04.4]} 13... Ng4 {[%clk 0:04:20.8]}
14. Nf5 {[%clk 0:04:01.6]} 14... Qf6 {[%clk 0:04:14.1]} 15. h3 {[%clk
0:04:00.4]} 15... g6 {[%clk 0:04:08.8]} 16. hxg4 {[%clk 0:03:58.3]} 16... gxf5
{[%clk 0:04:07.3]} 17. gxf5 {[%clk 0:03:58.2]} 17... Rb6 {[%clk 0:04:03.6]} 18.
O-O-O {[%clk 0:03:51.1]} 18... Kh8 {[%clk 0:04:00.4]} 19. g4 {[%clk 0:03:50]}
19... Qd8 {[%clk 0:03:49.4]} 20. g5 {[%clk 0:03:45.3]} 20... Ne7 {[%clk
0:03:37.8]} 21. Nh4 {[%clk 0:03:37.8]} 21... d5 {[%clk 0:03:36.5]} 22. exd5
{[%clk 0:03:36.5]} 22... Nxd5 {[%clk 0:03:35.5]} 23. g6 {[%clk 0:03:35.3]} 23...
Nxe3 {[%clk 0:02:58]} 24. Qe4 {[%clk 0:03:27.9]} 24... Nxd1 {[%clk 0:02:52]} 25.
Rxd1 {[%clk 0:03:15.3]} 25... Qg5+ {[%clk 0:02:40.3]} 26. Kc2 {[%clk 0:03:11]}
26... f6 {[%clk 0:02:36.4]} 27. gxh7 {[%clk 0:03:06.5]} 27... Qf4 {[%clk
0:02:28.5]} 28. Qxf4 {[%clk 0:03:03.7]} 28... exf4 {[%clk 0:02:27.3]} 29. Ng6+
{[%clk 0:03:03.3]} 29... Kxh7 {[%clk 0:02:22.4]} 30. Nxf8+ {[%clk 0:03:02.4]}
30... Kg7 {[%clk 0:02:21.6]} 31. Ne6+ {[%clk 0:03:01.7]} 1-0